bitfinex-derivatives/quotes_ETHF0:USTF0_20230401
["timestamp","ask_amount","ask_price","bid_price","bid_amount"]
[1680354706618,0.57444756,1826.5,1826.4,41.619]
[1680354707024,0.57444756,1826.5,1826.4,41.621]
[1680354709732,1.96997495,1826.7,1826.4,41.621]
[1680354709920,1.96997495,1826.7,1826.5,1.0]
[1680354720339,1.96997495,1826.7,1826.4,41.621]
[1680354720543,0.57446576,1826.5,1826.4,41.621]
[1680354725346,1.43616318,1826.5,1826.4,41.621]
[1680354731855,0.86169742,1826.5,1826.4,0.821]
[1680354736957,1.68269742,1826.5,1826.3,3.2078]
[1680354737150,0.57437382,1826.4,1826.3,3.2078]
[1680354747764,0.57437382,1826.4,1826.3,44.0078]
[1680354749368,0.57437382,1826.4,1826.3,40.8]
[1680354758578,0.57437382,1826.4,1826.2,0.819]
[1680354759077,0.57437382,1826.4,1826.2,41.619]
[1680354759478,0.57437382,1826.4,1826.3,1.0]
[1680354768488,0.57437382,1826.4,1826.2,41.617]
[1680354768687,1.43607124,1826.4,1826.2,0.817]
[1680354769085,0.57437382,1826.3,1826.2,0.817]
[1680354769684,0.57437382,1826.3,1826.2,41.617]
[1680354770891,1.43607124,1826.4,1826.2,41.617]
[1680354772882,1.43607124,1826.4,1826.3,1.0]
[1680354773284,0.57437382,1826.4,1826.3,4.2078]
[1680354774590,0.57415361,1826.5,1826.3,5.0288]
[1680354774790,0.57415361,1826.5,1826.4,1.821]
[1680354783499,0.57415361,1826.5,1826.4,0.821]
[1680354785195,0.57415361,1826.5,1826.4,41.621]
[1680354804811,2.25285103,1826.7,1826.4,41.621]
[1680354805016,1.39115361,1826.7,1826.6,3.2078]
[1680354805208,1.39115361,1826.7,1826.5,1.0]
[1680354805407,2.25285103,1826.7,1826.5,1.0]
[1680354805913,0.57415361,1826.6,1826.5,1.0]
[1680354807108,0.57415361,1826.6,1826.4,4.0288]
[1680354807313,0.57415361,1826.6,1826.5,40.8]
[1680354808518,0.57415361,1826.6,1826.4,4.0288]
[1680354809017,0.57415361,1826.6,1826.4,44.8288]
[1680354809218,0.57415361,1826.6,1826.5,1.0]
[1680354818824,1.43585103,1826.6,1826.5,1.0]
[1680354824331,1.43588545,1826.6,1826.5,1.0]
[1680354824825,0.86169742,1826.6,1826.4,44.8288]
[1680354825032,0.57419435,1826.5,1826.4,44.8288]
[1680354836739,0.57419435,1826.5,1826.4,4.0288]
[1680354836941,2.25589177,1826.5,1826.4,3.2078]
[1680354837134,1.68169742,1826.5,1826.2,4.0248]
[1680354837435,0.57423599,1826.4,1826.2,44.8248]
[1680354837639,0.57423599,1826.4,1826.3,1.0]
[1680354839040,0.56851163,1826.4,1826.3,1.0]
[1680354840140,1.68169742,1826.5,1826.3,1.0]
[1680354844846,0.82,1826.5,1826.3,1.0]
[1680354846343,1.68169742,1826.5,1826.3,1.0]
[1680354847048,0.818,1826.5,1826.2,44.8268]
[1680354847255,0.818,1826.5,1826.3,1.0]
[1680354847749,0.818,1826.5,1826.3,41.8]
[1680354849648,1.67969742,1826.5,1826.3,41.8]
[1680354856552,1.67969742,1826.5,1826.3,40.8]
[1680354858555,1.67969742,1826.5,1826.2,4.0268]
[1680354858947,0.816,1826.3,1825.8,0.814]
[1680354859154,0.816,1826.3,1825.9,40.8]
[1680354859155,0.821,1826.1,1825.9,40.8]
[1680354859356,0.821,1826.1,1826.0,1.0]
[1680354868963,0.821,1826.1,1825.9,40.8]
[1680354869266,0.821,1826.1,1826.0,1.0]
[1680354874874,0.821,1826.1,1825.9,40.8]
[1680354875069,0.821,1826.1,1826.0,1.0]
[1680354875968,0.821,1826.1,1826.0,0.9958089]
[1680354876368,0.821,1826.1,1825.9,40.8]
[1680354876573,0.821,1826.1,1826.0,1.0]
[1680354876968,4.0238,1826.2,1826.0,1.0]
[1680354887788,4.0238,1826.2,1825.9,40.8]
[1680354889188,4.0238,1826.2,1826.0,1.0]
[1680354889695,4.0238,1826.2,1825.9,40.8]
[1680354889992,4.0238,1826.2,1826.0,1.0]
[1680354892093,4.0238,1826.2,1825.9,40.8]
[1680354892483,4.0238,1826.2,1826.0,1.0]
[1680354895891,4.0238,1826.2,1825.9,40.8]
[1680354898895,4.88549742,1826.2,1826.0,1.0]
[1680354904095,1.67769742,1826.2,1826.0,1.0]
[1680354904305,0.86169742,1826.2,1826.0,1.817]
[1680354904900,0.86169742,1826.1,1826.0,1.817]
[1680354907101,0.86169742,1826.1,1826.0,1.819]
[1680354914499,0.86169742,1826.2,1826.0,1.819]
[1680354916102,0.86169742,1826.1,1826.0,1.819]
[1680354923009,0.86169742,1826.4,1826.1,5.48]
[1680354923215,0.86169742,1826.5,1826.3,1.642]
[1680354923410,0.86169742,1826.5,1826.4,6.301]
[1680354923715,0.86169742,1826.5,1826.4,6.36052766]
[1680354924527,0.86169742,1826.6,1826.4,6.36052766]
[1680354924708,0.86169742,1826.6,1826.5,0.821]
[1680354925217,0.86169742,1826.6,1826.5,1.821]
[1680354926506,0.86169742,1826.7,1826.5,1.821]
[1680354928212,0.86169742,1826.7,1826.5,0.821]
[1680354928517,0.86169742,1826.7,1826.5,1.821]
[1680354928914,0.86169742,1826.7,1826.5,0.821]
[1680354935620,1.68269742,1826.7,1826.4,0.819]
[1680354935821,3.2078,1826.6,1826.4,0.819]
[1680354954436,0.821,1826.5,1826.2,3.48751361]
[1680354954636,0.821,1826.5,1826.2,2.48751361]
[1680354955239,0.821,1826.5,1826.3,5.91291829]
[1680354956745,0.821,1826.5,1826.2,2.48751361]
[1680354956944,0.821,1826.5,1826.2,2.48951361]
[1680354957445,0.821,1826.5,1826.3,6.05715065]
[1680354958950,1.39430429,1826.5,1826.3,6.05715065]
[1680354960449,1.39430429,1826.5,1826.2,2.48951361]
[1680354960653,0.82,1826.3,1826.2,1.66851361]
[1680354960855,0.82,1826.3,1826.1,3.76169766]
[1680354962160,0.82,1826.3,1826.1,4.76169766]
[1680354966449,1.39330429,1826.3,1826.1,4.76169766]
[1680354967050,0.57330429,1826.3,1826.1,5.58069766]
[1680354968555,0.57330429,1826.3,1826.1,2.37289766]
[1680354969252,0.57330429,1826.3,1826.1,1.37289766]
[1680354975365,0.82,1826.2,1826.1,0.55389766]
[1680354975567,2.25500171,1826.2,1825.9,40.8]
[1680354975757,1.39330429,1826.2,1825.9,40.8]
[1680354976270,1.39330429,1826.2,1826.0,5.86391518]
[1680354976568,1.39330429,1826.2,1826.0,6.86391518]
[1680354977063,1.39130429,1826.2,1826.0,6.86391518]
[1680354977665,1.39130429,1826.2,1826.0,5.86391518]
[1680354977866,1.39130429,1826.2,1826.0,6.86391518]
[1680354978564,4.59910429,1826.2,1826.0,5.86391518]
[1680354979273,4.59910429,1826.2,1826.0,6.86391518]
[1680354979467,4.59910429,1826.2,1826.0,5.86391518]
[1680354979966,4.59910429,1826.2,1825.9,41.621]
[1680354980168,4.59910429,1826.2,1826.0,6.11316347]
[1680354980368,4.59910429,1826.2,1826.0,7.11316347]
[1680354982969,4.59910429,1826.2,1826.1,1.0]
[1680354983477,4.59910429,1826.2,1826.0,7.11316347]
[1680354985062,3.78110429,1826.2,1826.1,1.821]
[1680354987274,0.57330429,1826.2,1826.1,1.821]
[1680354988870,0.57330429,1826.2,1826.1,2.37584327]
[1680354994784,3.78110429,1826.2,1826.1,1.55484327]
[1680355004289,4.64280171,1826.2,1826.1,1.55484327]
[1680355004791,4.64280171,1826.2,1826.1,0.55484327]
[1680355004990,4.64280171,1826.2,1826.0,1.821]
[1680355005591,4.64280171,1826.2,1826.1,5.71145372]
[1680355005787,4.64280171,1826.2,1826.1,6.71145372]
[1680355006585,4.64354332,1826.2,1826.1,6.71145372]
[1680355006786,4.06949742,1826.2,1826.1,6.71145372]
[1680355006987,4.64354396,1826.2,1826.1,6.71145372]
[1680355007697,4.06949742,1826.2,1826.1,6.71145372]
[1680355010888,0.86169742,1826.2,1826.1,7.24982166]
[1680355011188,0.57412864,1826.2,1826.1,8.88582166]
[1680355011391,0.57412864,1826.3,1826.1,8.88582166]
[1680355011593,0.57412864,1826.3,1826.2,1.821]
[1680355011989,0.57412864,1826.3,1826.2,7.68537999]
[1680355017196,4.64362606,1826.3,1826.2,6.68537999]
[1680355020295,4.06949742,1826.3,1826.2,6.68537999]
[1680355022503,4.64361985,1826.3,1826.2,6.68537999]
[1680355022699,1.96702001,1826.5,1826.2,6.68537999]
[1680355022700,0.57412243,1826.4,1826.2,7.68537999]
[1680355025802,1.43581985,1826.4,1826.2,7.68537999]
[1680355026101,1.43581985,1826.4,1826.3,1.0]
[1680355026804,0.57412243,1826.4,1826.3,1.0]
[1680355027005,0.57412243,1826.4,1826.2,7.68537999]
[1680355027394,1.43581985,1826.4,1826.2,7.68537999]
[1680355027598,0.57412243,1826.3,1826.2,7.68537999]
[1680355030306,4.64361985,1826.4,1826.2,7.68537999]
[1680355030704,0.57412243,1826.3,1826.2,7.68537999]
[1680355033605,0.57412243,1826.3,1826.2,6.68537999]
[1680355047027,0.57412243,1826.3,1826.2,5.86437999]
[1680355056223,0.86169742,1826.3,1826.2,5.86437999]
[1680355074247,0.86169742,1826.3,1826.2,46.66437999]
[1680355076742,4.06949742,1826.3,1826.2,46.66437999]
[1680355088555,4.06949742,1826.3,1826.2,40.8]
[1680355094563,0.57459836,1826.3,1826.2,41.621]
[1680355094764,0.57459836,1826.3,1826.2,47.81995792]
[1680355123583,1.43629578,1826.3,1826.2,47.81995792]
[1680355125984,0.86169742,1826.3,1826.2,47.81995792]
[1680355126489,0.86169742,1826.3,1826.2,41.621]
[1680355126684,0.86169742,1826.3,1826.2,40.8]
[1680355126685,4.89049742,1826.3,1826.2,40.8]
[1680355126893,4.0288,1826.3,1826.2,40.8]
[1680355127188,5.17482001,1826.3,1826.2,40.8]
[1680355127483,4.0288,1826.3,1826.2,40.8]
[1680355128589,4.0288,1826.3,1826.1,0.53836794]
[1680355128891,1.43583712,1826.2,1825.9,44.8288]
[1680355129286,0.57433485,1826.2,1825.9,44.8288]
[1680355129488,0.57433485,1826.2,1826.0,6.1553953]
[1680355129783,0.57433485,1826.2,1826.0,7.1553953]
[1680355130891,1.43583712,1826.2,1826.0,7.1553953]
[1680355131288,0.57433485,1826.2,1826.0,7.1553953]
[1680355131690,2.25683712,1826.3,1826.0,7.1553953]
[1680355132187,0.57433485,1826.2,1826.0,7.1553953]
[1680355134093,0.57433485,1826.2,1826.0,6.1553953]
[1680355134494,0.57433485,1826.2,1826.1,40.8]
[1680355135300,0.57433485,1826.2,1825.9,0.821]
[1680355135489,1.38813399,1826.0,1825.7,4.86982542]
[1680355135688,0.816,1825.9,1825.7,1.66202542]
[1680355135989,0.816,1825.9,1825.5,5.0288]
[1680355136188,0.816,1825.9,1825.5,5.56821359]
[1680355136595,0.816,1825.9,1825.6,1.0]
[1680355136791,0.816,1825.9,1825.6,7.28909321]
[1680355136993,0.821,1825.9,1825.6,8.11009321]
[1680355137194,1.821,1825.9,1825.6,8.11009321]
[1680355137392,0.821,1825.9,1825.6,8.11009321]
[1680355141400,0.821,1825.9,1825.7,40.8]
[1680355141591,0.821,1825.9,1825.8,1.0]
[1680355144399,3.2078,1826.0,1825.8,1.821]
[1680355144599,0.816,1826.1,1825.8,1.821]
[1680355146796,0.816,1826.1,1825.8,0.821]
[1680355147102,0.818,1826.1,1825.8,1.0]
[1680355151309,1.68150227,1826.3,1825.9,4.0268]
[1680355151605,1.68150227,1826.3,1826.0,1.0]
[1680355152004,1.68150227,1826.3,1826.1,6.2978758]
[1680355155315,0.86150227,1826.2,1826.1,6.2978758]
[1680355155509,1.68150227,1826.3,1826.1,6.2978758]
[1680355155919,0.86150227,1826.2,1826.1,6.2978758]
[1680355157011,4.06930227,1826.2,1826.1,6.2978758]
[1680355162324,4.88930227,1826.2,1826.1,6.2978758]
[1680355167424,4.88930227,1826.2,1825.9,1.0]
[1680355167725,3.2078,1826.0,1825.8,41.619]
[1680355168725,3.2078,1826.0,1825.8,0.819]
[1680355169425,3.2078,1826.0,1825.8,1.819]
[1680355170823,3.2078,1826.0,1825.8,0.819]
[1680355171522,4.06930227,1826.0,1825.8,0.819]
[1680355177030,4.89030227,1826.0,1825.7,41.621]
[1680355177333,3.2078,1825.8,1825.7,41.621]
[1680355177737,3.2078,1825.8,1825.7,47.97327756]
[1680355187038,3.2078,1825.8,1825.7,47.15227756]
[1680355206652,4.06930227,1825.8,1825.7,47.15227756]
[1680355209361,5.17482001,1825.8,1825.5,2.18402798]
[1680355209655,3.20115299,1825.6,1825.3,0.818]
[1680355209853,3.20115299,1825.6,1825.4,40.8]
[1680355210054,4.0627007,1825.6,1825.4,46.67271489]
[1680355210851,3.20115299,1825.6,1825.4,46.67271489]
[1680355215263,3.20115299,1825.6,1825.4,5.87271489]
[1680355215762,3.20115299,1825.6,1825.5,40.8]
[1680355216964,4.01815299,1825.6,1825.5,40.8]
[1680355219265,4.01815299,1825.6,1825.3,2.19883719]
[1680355219563,3.2078,1825.4,1825.2,0.821]
[1680355219862,3.2078,1825.4,1825.3,40.8]
[1680355222966,4.0228,1825.4,1825.3,40.8]
[1680355226969,3.2078,1825.4,1825.3,40.8]
[1680355231872,0.819,1825.7,1825.3,44.8268]
[1680355232065,0.819,1825.7,1825.3,9.73944224]
[1680355232465,0.819,1825.7,1825.4,41.8]
[1680355232667,0.819,1825.7,1825.5,1.0]
[1680355232963,0.819,1825.7,1825.5,7.04856746]
[1680355234574,1.68254771,1825.9,1825.5,11.07336746]
[1680355234763,0.86154771,1825.8,1825.5,11.07336746]
[1680355235162,1.68254771,1825.9,1825.5,11.07336746]
[1680355235571,0.86154771,1825.8,1825.5,11.07336746]
[1680355236365,4.89034771,1825.9,1825.5,11.07336746]
[1680355236974,4.89034771,1825.9,1825.6,0.821]
[1680355237478,4.89034771,1825.9,1825.7,1.0]
[1680355237679,0.821,1825.9,1825.7,1.0]
[1680355237877,0.86154771,1826.0,1825.8,0.821]
[1680355239080,0.86154771,1826.0,1825.9,6.15363396]
[1680355239669,1.68154771,1826.1,1825.9,6.15363396]
[1680355239874,0.82,1826.1,1826.0,1.0]
[1680355240378,1.96602001,1826.1,1825.9,6.15363396]
[1680355240572,0.86043241,1826.0,1825.9,6.15363396]
[1680355244989,4.06823241,1826.0,1825.9,6.15363396]
[1680355256700,4.64165176,1826.0,1825.9,6.15363396]
[1680355257796,4.06823241,1826.0,1825.9,6.15363396]
[1680355260189,4.06823241,1826.0,1825.7,1.819]
[1680355260395,0.57341449,1825.9,1825.7,1.819]
[1680355260600,0.57341449,1825.9,1825.7,0.819]
[1680355260800,0.57341449,1825.9,1825.8,6.1772142]
[1680355267008,1.39341449,1825.9,1825.8,6.1772142]
[1680355271404,2.20841449,1825.9,1825.5,3.2078]
[1680355271708,1.821,1825.7,1825.5,3.2078]
[1680355271910,0.821,1825.7,1825.4,0.819]
[1680355272211,0.821,1825.7,1825.5,1.0]
[1680355272407,1.39466319,1825.7,1825.5,1.0]
[1680355275709,1.39466319,1825.7,1825.4,1.819]
[1680355276113,1.39466319,1825.7,1825.4,42.619]
[1680355276309,1.39466319,1825.7,1825.5,1.0]
[1680355276613,2.2550956,1825.7,1825.5,7.04835406]
[1680355278013,1.39466319,1825.7,1825.5,7.04835406]
[1680355278315,2.2550956,1825.7,1825.5,7.04835406]
[1680355280609,2.25113447,1825.7,1825.5,7.04835406]
[1680355282315,2.25113447,1825.7,1825.5,6.04835406]
[1680355282518,1.39466319,1825.6,1825.3,3.2078]
[1680355282820,2.39012458,1825.5,1825.3,44.0078]
[1680355283019,1.39012458,1825.5,1825.3,40.8]
[1680355287015,1.38912458,1825.5,1825.3,40.8]
[1680355288118,0.815,1825.5,1825.3,40.8]
[1680355297130,4.0288,1825.4,1825.3,40.8]
[1680355305738,0.821,1825.4,1825.3,40.8]
[1680355305940,3.78192458,1825.6,1825.3,41.621]
[1680355306143,3.78192458,1825.6,1825.4,1.0]
[1680355307038,4.60292458,1825.6,1825.4,40.8]
[1680355307242,4.60292458,1825.6,1825.5,1.0]
[1680355308147,4.60292458,1825.6,1825.4,40.8]
[1680355309748,4.60292458,1825.6,1825.5,1.0]
[1680355310244,4.60292458,1825.6,1825.4,40.8]
[1680355311851,5.46335699,1825.6,1825.4,40.8]
[1680355313753,0.57412458,1825.5,1825.4,40.8]
[1680355316657,1.43455699,1825.5,1825.4,40.8]
[1680355316857,1.67543241,1825.5,1825.4,40.8]
[1680355326968,1.68143241,1825.5,1825.4,40.8]
[1680355327870,1.96702001,1825.5,1825.4,40.8]
[1680355338171,1.96702001,1825.5,1825.2,2.19362298]
[1680355338473,0.57465718,1825.3,1825.0,3.4303551]
[1680355338773,0.57465718,1825.3,1825.1,40.8]
[1680355338973,0.57465718,1825.3,1825.2,1.0]
[1680355348501,1.39165718,1825.4,1825.2,1.0]
[1680355349190,1.39165718,1825.4,1825.3,40.8]
[1680355353893,2.25364296,1825.4,1825.3,40.8]
[1680355355191,1.39165718,1825.4,1825.3,40.8]
[1680355355391,2.25364296,1825.4,1825.3,40.8]
[1680355355692,1.39165718,1825.4,1825.3,40.8]
[1680355356090,2.25364296,1825.4,1825.3,40.8]
[1680355356591,1.39165718,1825.4,1825.3,40.8]
[1680355356794,2.25364296,1825.4,1825.3,40.8]
[1680355356994,1.67898578,1825.4,1825.3,40.8]
[1680355357790,5.70778578,1825.4,1825.0,2.1660719]
[1680355357996,1.39580895,1825.2,1825.0,1.0]
[1680355358191,0.821,1825.2,1825.0,1.0]
[1680355363094,0.821,1825.2,1825.0,1.53713859]
[1680355363599,0.821,1825.2,1825.1,40.8]
[1680355367004,1.39580895,1825.3,1825.1,40.8]
[1680355376313,0.821,1825.2,1825.1,40.8]
[1680355377915,0.821,1825.2,1825.0,0.53713859]
[1680355378111,0.821,1825.2,1824.9,4.84665322]
[1680355378311,0.821,1825.2,1824.9,5.84665322]
[1680355378513,0.821,1825.2,1825.0,40.8]
[1680355378723,0.821,1825.2,1825.1,1.0]
[1680355379414,0.821,1825.2,1825.0,40.8]
[1680355379713,0.821,1825.2,1825.1,1.0]
[1680355382724,0.821,1825.2,1825.0,40.8]
[1680355382919,0.821,1825.2,1825.1,1.0]
[1680355383923,0.821,1825.2,1825.0,40.8]
[1680355384223,0.821,1825.2,1825.1,1.0]
[1680355385623,0.821,1825.2,1825.0,41.33788435]
[1680355386024,0.821,1825.2,1825.1,1.0]
[1680355386823,0.821,1825.2,1825.0,41.33788435]
[1680355387322,0.821,1825.2,1825.1,1.0]
[1680355388921,0.821,1825.2,1825.0,41.33788435]
[1680355389226,0.821,1825.2,1825.1,1.0]
[1680355391325,0.821,1825.2,1825.0,41.33788435]
[1680355391624,0.821,1825.2,1825.1,1.0]
[1680355392324,0.821,1825.2,1825.0,41.33788435]
[1680355392927,0.821,1825.2,1825.1,1.0]
[1680355394126,0.821,1825.2,1825.0,41.33788435]
[1680355395414,0.821,1825.2,1825.1,1.0]
[1680355396028,0.821,1825.2,1825.0,41.33788435]
[1680355396226,1.39580895,1825.2,1825.0,41.33788435]
[1680355396621,0.821,1825.2,1825.1,1.0]
[1680355398031,0.821,1825.2,1825.0,41.33788435]
[1680355398233,1.39580895,1825.2,1825.0,41.33788435]
[1680355398420,0.821,1825.2,1825.0,41.33788435]
[1680355399433,1.39580895,1825.2,1825.0,41.33788435]
[1680355403735,0.821,1825.1,1825.0,41.33788435]
[1680355403943,1.39580895,1825.1,1825.0,41.33788435]
[1680355404144,1.71878686,1825.1,1825.0,0.53788435]
[1680355404439,1.43120552,1825.1,1824.8,1.0]
[1680355404631,0.821,1825.0,1824.9,40.8]
[1680355405029,0.821,1825.0,1824.9,46.96616714]
[1680355406439,4.0288,1825.0,1824.9,46.96616714]
[1680355407237,4.0288,1825.0,1824.9,6.16616714]
[1680355407437,5.42143208,1825.0,1824.7,1.62147686]
[1680355407639,5.42143208,1825.0,1824.5,3.75854604]
[1680355407640,0.815,1824.8,1824.5,4.75854604]
[1680355407838,0.815,1824.8,1824.6,40.8]
[1680355408041,0.815,1824.8,1824.7,1.0]
[1680355408541,0.815,1824.8,1824.7,6.91016493]
[1680355413046,0.84997271,1824.8,1824.7,6.91016493]
[1680355414641,0.84997271,1824.8,1824.7,47.71016493]
[1680355424341,0.84997271,1824.8,1824.7,46.71016493]
[1680355432557,0.84715675,1824.8,1824.7,46.71016493]
[1680355437156,0.03497271,1824.8,1824.7,46.71016493]
[1680355437366,0.815,1824.9,1824.7,46.71016493]
[1680355437555,0.815,1824.9,1824.8,1.0]
[1680355438060,0.815,1824.9,1824.8,41.8]
[1680355442058,0.815,1824.9,1824.8,48.03596693]
[1680355442870,0.85004346,1824.9,1824.8,48.03596693]
[1680355444866,0.85004346,1824.9,1824.8,47.03596693]
[1680355445071,0.85004346,1824.9,1824.8,40.8]
[1680355445271,0.85204346,1824.9,1824.8,40.8]
[1680355448174,1.42667554,1824.9,1824.8,40.8]
[1680355448875,0.85204346,1824.9,1824.8,40.8]
[1680355449572,1.42667554,1824.9,1824.8,40.8]
[1680355453778,2.28888896,1824.9,1824.8,40.8]
[1680355454075,1.42667554,1824.9,1824.8,40.8]
[1680355454279,0.60967554,1824.9,1824.8,40.8]
[1680355454878,0.03573412,1824.9,1824.8,40.8]
[1680355455178,0.89794754,1825.0,1824.8,44.8268]
[1680355455379,0.86221342,1825.0,1824.8,9.99927482]
[1680355455771,0.86221342,1825.0,1824.9,41.8]
[1680355456281,0.86221342,1825.0,1824.9,48.07632066]
[1680355456872,1.68321342,1825.0,1824.9,48.07632066]
[1680355457783,0.821,1825.0,1824.9,48.07632066]
[1680355466383,0.86221342,1825.3,1825.1,5.48]
[1680355466684,0.86221342,1825.5,1825.2,10.21702887]
[1680355466883,0.86221342,1825.5,1825.4,4.0248]
[1680355467083,0.86221342,1825.5,1825.4,3.2078]
[1680355467285,0.86221342,1825.5,1825.4,9.35526997]
[1680355467779,0.86221342,1825.6,1825.4,9.35526997]
[1680355468083,0.86221342,1825.6,1825.5,1.0]
[1680355468292,1.67921342,1825.7,1825.5,1.0]
[1680355468475,0.817,1825.7,1825.6,3.2078]
[1680355469682,1.67725043,1825.7,1825.6,3.2078]
[1680355473991,0.817,1825.7,1825.6,3.2078]
[1680355475186,0.86025043,1825.8,1825.6,3.2078]
[1680355475390,0.86025043,1825.8,1825.7,1.0]
[1680355476984,1.67525043,1826.0,1825.7,1.821]
[1680355477192,1.67525043,1826.0,1825.8,3.2078]
[1680355477391,1.67525043,1826.0,1825.9,1.0]
[1680355477689,1.67525043,1826.0,1825.8,3.2078]
[1680355477885,1.67525043,1826.0,1825.9,1.0]
[1680355479188,1.67525043,1826.0,1825.7,1.821]
[1680355480677,0.815,1826.0,1825.8,44.0078]
[1680355480884,1.67525043,1826.0,1825.9,1.0]
[1680355481779,0.815,1826.0,1825.9,1.0]
[1680355483591,1.67525043,1826.0,1825.9,1.0]
[1680355483792,0.815,1826.0,1825.9,1.0]
[1680355484495,0.815,1826.0,1825.8,44.0078]
[1680355484693,0.815,1826.0,1825.9,1.0]
[1680355486390,0.815,1826.0,1825.8,40.8]
[1680355486590,1.67525043,1826.0,1825.8,40.8]
[1680355486996,1.68125043,1826.0,1825.8,40.8]
[1680355487496,0.821,1826.0,1825.8,40.8]
[1680355489393,1.68125043,1826.0,1825.8,40.8]
[1680355489800,0.821,1826.0,1825.8,40.8]
[1680355490699,0.821,1826.0,1825.9,1.0]
[1680355491096,0.821,1826.0,1825.8,40.8]
[1680355491297,0.821,1826.0,1825.9,1.0]
[1680355491801,1.68125043,1826.0,1825.9,1.0]
[1680355492498,1.68125043,1826.0,1825.8,40.8]
[1680355492894,1.68125043,1826.0,1825.9,1.0]
[1680355493301,0.821,1826.0,1825.9,1.0]
[1680355496503,0.821,1826.0,1825.8,40.8]
[1680355496704,0.821,1826.0,1825.9,1.0]
[1680355497705,1.68125043,1826.0,1825.9,1.0]
[1680355498301,1.68125043,1826.0,1825.8,40.8]
[1680355498803,1.68125043,1826.0,1825.9,1.0]
[1680355502104,1.68125043,1826.0,1825.8,40.8]
[1680355502715,1.68125043,1826.0,1825.9,1.0]
[1680355503009,1.68125043,1826.0,1825.8,40.8]
[1680355503518,1.68125043,1826.0,1825.9,1.0]
[1680355504209,1.68125043,1826.0,1825.8,40.8]
[1680355504510,0.821,1826.0,1825.9,1.0]
[1680355505116,0.821,1826.0,1825.8,44.0078]
[1680355505312,0.821,1826.0,1825.9,1.0]
[1680355506113,0.821,1826.0,1825.8,40.8]
[1680355506310,1.68125043,1826.0,1825.9,1.0]
[1680355506705,0.821,1826.0,1825.9,1.0]
[1680355507206,0.815,1826.0,1825.9,1.0]
[1680355507810,1.67525043,1826.0,1825.9,1.0]
[1680355509115,1.67525043,1826.0,1825.8,44.0078]
[1680355509116,1.67525043,1826.0,1825.8,3.2078]
[1680355509714,1.67525043,1826.0,1825.9,1.0]
[1680355511721,1.96102001,1826.0,1825.9,1.0]
[1680355512311,1.96102001,1826.0,1825.8,4.2078]
[1680355512518,0.86087681,1825.9,1825.8,4.2078]
[1680355518426,0.86118886,1825.9,1825.8,4.2078]
[1680355518832,0.86118916,1825.9,1825.8,4.2078]
[1680355519632,1.96102001,1826.0,1825.8,4.2078]
[1680355521529,1.96102001,1826.0,1825.9,1.0]
[1680355521723,0.815,1826.0,1825.9,1.0]
[1680355522429,2.24932228,1826.0,1825.9,1.0]
[1680355523928,1.96366442,1826.0,1825.9,1.0]
[1680355524833,1.96366442,1826.0,1825.8,4.2078]
[1680355525033,0.8614493,1825.9,1825.8,45.0078]
[1680355525435,1.96366442,1826.0,1825.8,45.0078]
[1680355525636,1.96366442,1826.0,1825.9,1.0]
[1680355527039,1.14866442,1826.0,1825.9,1.0]
[1680355529638,1.14866442,1826.0,1825.8,45.0078]
[1680355529639,1.14859924,1826.0,1825.8,45.0078]
[1680355529938,1.14859924,1826.0,1825.9,1.0]
[1680355530239,2.24932228,1826.1,1825.9,1.0]
[1680355534349,2.24932228,1826.1,1825.9,0.99211582]
[1680355536440,2.24932228,1826.1,1826.0,3.2078]
[1680355537242,2.92830433,1826.1,1826.0,3.2078]
[1680355538650,0.815,1826.1,1826.0,3.2078]
[1680355538946,1.43432228,1826.2,1826.0,4.0288]
[1680355539144,2.11328018,1826.2,1826.1,1.0]
[1680355539639,0.6789579,1826.2,1826.1,1.0]
[1680355540239,0.6789579,1826.2,1826.0,4.0288]
[1680355540439,1.43594015,1826.1,1826.0,4.0288]
[1680355540643,1.43594015,1826.1,1826.0,5.0288]
[1680355542545,1.14869362,1826.1,1826.0,5.0288]
[1680355542848,0.86146767,1826.1,1826.0,5.0288]
[1680355544555,0.86146767,1826.2,1826.0,5.0288]
[1680355544850,0.86146767,1826.2,1826.1,1.0]
[1680355548150,0.86146767,1826.3,1826.1,1.0]
[1680355548354,0.86146767,1826.3,1826.2,3.2078]
[1680355553657,1.68246767,1826.4,1826.2,3.2078]
[1680355553858,0.86146767,1826.3,1826.2,3.2078]
[1680355554160,1.68246767,1826.4,1826.2,3.2078]
[1680355555659,1.68246767,1826.4,1826.3,1.0]
[1680355556960,1.68246767,1826.5,1826.3,1.0]
[1680355557161,1.68246767,1826.5,1826.4,3.2078]
[1680355561764,0.821,1826.5,1826.4,3.2078]
[1680355563268,0.821,1826.5,1826.3,1.0]
[1680355563467,0.821,1826.5,1826.4,3.2078]
[1680355563869,0.86146767,1826.6,1826.4,4.0288]
[1680355566973,0.86146767,1826.6,1826.4,3.2078]
[1680355567472,7.11060216,1826.7,1826.4,3.2078]
[1680355567866,6.24913449,1826.7,1826.6,3.2078]
[1680355568068,7.11060216,1826.7,1826.6,3.2078]
[1680355568763,7.11060216,1826.7,1826.4,3.2078]
[1680355568967,7.11060216,1826.7,1826.6,3.2078]
[1680355569365,6.24913449,1826.7,1826.6,3.2078]
[1680355569869,7.11060216,1826.7,1826.6,3.2078]
[1680355570065,6.24913449,1826.7,1826.6,3.2078]
[1680355570267,7.11060216,1826.7,1826.6,3.2078]
[1680355571467,6.24913449,1826.7,1826.6,3.2078]
[1680355572173,7.11060216,1826.7,1826.4,3.2078]
[1680355572475,7.11060216,1826.7,1826.6,3.2078]